bitfinex/quotes_ETHUSD_20250810
["timestamp","ask_amount","ask_price","bid_price","bid_amount"]
[1754866626896,1e-08,4236.8,4236.5,0.1184]
[1754866627095,0.4287,4236.7,4236.6,3.582]
[1754866628298,0.8835,4236.7,4236.6,3.582]
[1754866630400,0.8835,4236.7,4236.6,5.94238332]
[1754866630401,0.4287,4236.7,4236.6,5.94238332]
[1754866630604,1e-08,4236.8,4236.7,2.36032761]
[1754866630798,1e-08,4236.8,4236.7,3.29102761]
[1754866631252,1e-08,4236.8,4236.7,2.36032761]
[1754866649970,0.34088246,4237.3,4237.2,2.4373625]
[1754866649971,0.002,4237.3,4237.2,2.4373625]
[1754866650171,0.002,4237.3,4237.2,7.0570625]
[1754866651167,0.002,4237.7,4237.3,2.35999339]
[1754866651369,1e-08,4237.4,4237.3,4.2038376]
[1754866651577,1e-08,4237.7,4237.6,2.35982631]
[1754866651878,1e-08,4237.7,4237.6,5.93982631]
[1754866652045,1e-08,4237.7,4237.6,6.86112631]
[1754866652248,0.04,4238.9,4237.9,2.35965926]
[1754866652589,0.04,4238.9,4237.9,3.58]
[1754866652751,0.04,4238.9,4238.1,2.35954791]
[1754866652955,1e-08,4238.9,4238.8,2.47675825]
[1754866653148,1e-08,4238.9,4238.8,9.05675825]
[1754866653469,1e-08,4238.9,4238.8,9.97805825]
[1754866657983,1e-08,4238.9,4238.8,10.52805825]
[1754866658285,1e-08,4238.9,4238.8,10.90060246]
[1754866661042,0.4517,4241.4,4240.8,2.35804565]
[1754866661308,0.8931,4241.1,4240.8,6.05364565]
[1754866661547,0.1176,4241.6,4240.8,6.05364565]
[1754866661745,0.4414,4241.2,4240.8,6.05364565]
[1754866662168,2.35686212,4243.0,4240.8,6.05364565]
[1754866662169,0.4517,4243.1,4241.3,2.35771244]
[1754866662374,0.04,4243.9,4243.0,3.21208162]
[1754866662558,0.4414,4244.1,4243.1,0.55]
[1754866662742,0.4517,4244.0,4242.5,5.664]
[1754866662949,0.4414,4243.9,4243.6,2.35648419]
[1754866663292,5.35590983,4244.7,4243.7,3.635]
[1754866663293,0.8931,4243.8,4243.7,3.635]
[1754866664249,0.4414,4243.8,4243.7,3.635]
[1754866664494,0.8931,4243.8,4243.7,5.99143424]
[1754866664849,0.4414,4243.8,4243.7,5.99143424]
[1754866665060,0.4414,4244.3,4243.7,3.635]
[1754866665267,0.04,4244.9,4243.7,7.76838162]
[1754866665550,0.04,4244.9,4244.8,2.35582359]
[1754866665771,0.04,4244.9,4244.8,5.99682359]
[1754866665968,0.9331,4244.9,4244.8,5.99682359]
[1754866666184,0.9331,4244.9,4244.8,2.35582359]
[1754866666185,0.04,4244.9,4244.8,2.35582359]
[1754866666387,0.04,4244.9,4244.8,5.99682359]
[1754866666556,0.04,4244.9,4244.8,2.35582359]
[1754866666745,0.04,4244.9,4244.8,5.99782359]
[1754866666746,0.9331,4244.9,4244.8,5.99782359]
[1754866666946,0.04,4244.9,4244.8,5.99782359]
[1754866668888,0.4773,4244.9,4244.8,5.99782359]
[1754866669087,0.04,4244.9,4244.8,5.99782359]
[1754866670587,0.4793,4244.9,4243.5,3.9629]
[1754866670789,0.9761,4244.9,4243.7,3.0]
[1754866670989,0.4373,4244.8,4244.7,2.35585631]
[1754866671189,0.4373,4244.8,4244.6,2.35592365]
[1754866671491,0.4373,4244.8,4244.5,2.35598335]
[1754866671492,0.4968,4244.7,4244.5,2.35598335]
[1754866671660,0.042,4244.9,4244.6,3.641]
[1754866671856,0.042,4244.9,4244.7,2.35587189]
[1754866672089,0.042,4244.9,4244.8,3.64]
[1754866672297,0.042,4244.9,4244.7,2.35587189]
[1754866672486,0.042,4244.9,4244.8,3.639]
[1754866672991,0.042,4244.9,4244.8,5.99482359]
[1754866673492,0.9761,4244.9,4244.8,5.99482359]
[1754866674194,0.9761,4244.9,4244.8,3.639]
[1754866674492,0.9761,4244.9,4244.8,3.637]
[1754866674693,1.0937,4244.9,4244.8,3.637]
[1754866678567,1.0937,4244.9,4244.8,3.49607904]
[1754866680200,1.0937,4244.9,4244.8,3.634]
[1754866681775,0.97062469,4244.9,4244.8,3.634]
[1754866682001,0.97062469,4244.9,4244.6,2.35588393]
[1754866682202,0.97062469,4244.9,4244.7,3.632]
[1754866682372,0.97062469,4244.9,4244.6,2.35588393]
[1754866682578,0.97062469,4244.9,4244.7,3.632]
[1754866683100,0.97062469,4244.9,4243.4,0.4907]
[1754866683101,0.4968,4244.8,4243.4,0.4907]
[1754866683301,0.1176,4244.2,4243.6,0.1176]
[1754866683611,0.1176,4244.2,4244.1,2.35621215]
[1754866683818,0.1176,4244.2,4244.1,5.99221215]
[1754866684202,0.4968,4244.8,4244.4,2.35602616]
[1754866684405,0.1176,4244.7,4244.5,3.636]
[1754866684609,0.5549,4244.7,4244.5,3.636]
[1754866684912,0.5549,4244.7,4244.1,0.1176]
[1754866685094,0.5549,4244.7,4244.2,3.635]
[1754866685416,0.4373,4244.6,4244.2,3.635]
[1754866685593,0.4373,4244.6,4244.4,2.35604516]
[1754866685794,0.4373,4244.6,4244.5,3.635]
[1754866687219,0.4373,4244.6,4242.8,5.658]
[1754866687220,0.9341,4244.6,4242.8,5.658]
[1754866687383,0.1176,4244.2,4243.8,2.3563738]
[1754866687714,0.1176,4244.2,4243.9,3.636]
[1754866688091,0.61856954,4244.2,4243.9,3.636]
[1754866688297,0.1176,4244.2,4243.9,3.636]
[1754866688505,0.50096954,4244.1,4244.0,2.35626185]
[1754866688711,0.50096954,4244.1,4243.9,3.636]
[1754866689019,0.50096954,4244.0,4243.9,3.636]
[1754866689988,0.50096954,4244.0,4243.9,5.99232319]
[1754866690418,0.50096954,4244.0,4243.6,0.1176]
[1754866690620,0.50096954,4243.9,4243.7,3.634]
[1754866690799,0.50096954,4243.8,4243.7,5.99043424]
[1754866691000,0.50096954,4243.8,4243.6,0.1176]
[1754866691200,0.63227173,4243.8,4243.7,3.633]
[1754866691399,1.35511852,4243.8,4243.7,3.633]
[1754866691599,0.7256879,4243.8,4243.7,3.633]
[1754866691922,0.50584778,4243.8,4243.7,5.98943424]
[1754866692119,0.7256879,4243.8,4243.7,5.98943424]
[1754866692319,0.94590769,4243.8,4243.7,5.98943424]
[1754866692703,0.7256879,4243.8,4243.7,5.98943424]
[1754866693412,0.94590769,4243.8,4243.7,5.98943424]
[1754866693613,0.94590769,4243.8,4243.7,6.95233424]
[1754866694125,1.57133583,4243.8,4243.7,6.95233424]
[1754866694319,1.79155562,4243.8,4243.7,6.95233424]
[1754866694508,0.72609586,4243.8,4243.7,6.95233424]
[1754866694714,1.36037789,4243.8,4243.7,3.31933424]
[1754866694926,1.36038162,4243.8,4243.7,6.95033424]
[1754866695426,1.14013735,4243.8,4243.7,6.95033424]
[1754866696396,0.50584778,4243.8,4243.7,6.95033424]
[1754866697009,0.50584778,4243.8,4243.7,3.31933424]
[1754866697328,0.50584778,4243.8,4243.7,6.94833424]
[1754866697829,0.50584778,4243.8,4243.7,3.31933424]
[1754866698038,0.50584778,4243.8,4243.7,6.94833424]
[1754866706650,0.22063133,4244.1,4244.0,2.35626767]
[1754866706858,0.50831745,4244.1,4244.0,6.09586767]
[1754866707157,0.50831745,4244.1,4244.0,6.56146767]
[1754866707664,0.50831745,4244.1,4244.0,6.44386767]
[1754866707850,1.30434793,4244.8,4244.0,6.44386767]
[1754866707851,0.94962691,4244.4,4244.1,2.35621215]
[1754866708157,0.50831745,4244.3,4244.2,4.0866]
[1754866708449,1.42194793,4244.9,4244.3,2.35610112]
[1754866708450,0.50831745,4244.8,4244.3,2.35610112]
[1754866708749,0.1176,4244.9,4244.8,2.35582359]
[1754866708937,1.07557983,4245.2,4244.9,2.35576809]
[1754866709108,1.07557983,4245.2,4245.1,2.35565711]
[1754866709109,0.44129026,4245.2,4245.1,2.35565711]
[1754866709347,0.50833551,4245.2,4245.1,2.35565711]
[1754866709510,0.1176,4245.3,4245.2,2.35560162]
[1754866709707,0.002,4245.4,4245.3,2.35554613]
[1754866709952,0.51033551,4245.4,4245.3,3.621]
[1754866710244,0.002,4245.4,4245.3,3.621]
[1754866710613,0.9297,4245.4,4245.3,3.621]
[1754866710811,0.9297,4245.4,4245.3,5.97654613]
[1754866711243,0.002,4245.4,4245.3,5.97654613]
[1754866717835,0.002,4245.4,4245.1,0.1176]
[1754866718035,0.9277,4245.3,4245.2,3.616]
[1754866718235,1.55621364,4245.3,4245.2,3.618]
[1754866718448,1.67381364,4245.3,4245.2,3.618]
[1754866720729,1.67381364,4245.3,4244.4,0.1176]
[1754866720930,0.9277,4245.2,4244.5,3.616]
[1754866721324,0.1176,4245.0,4244.5,5.97197764]
[1754866721524,0.9277,4244.9,4244.5,3.616]
[1754866721747,0.9277,4244.9,4244.6,2.35593459]
[1754866721949,0.9277,4244.9,4244.7,3.616]
[1754866723038,0.9277,4244.9,4244.7,5.97186635]
[1754866723927,0.9277,4244.9,4244.7,3.616]
[1754866724230,0.4587,4244.9,4244.7,3.616]
[1754866724541,0.4587,4244.9,4244.7,5.97186161]
[1754866725326,0.4587,4244.9,4244.8,2.35582359]
[1754866725527,0.4587,4244.9,4244.8,3.613]
[1754866725755,0.4587,4244.9,4244.8,5.96882359]
[1754866726053,0.1176,4245.0,4244.8,5.96882359]
[1754866726258,0.1176,4245.0,4244.9,3.612]
[1754866727042,0.1176,4245.0,4244.9,5.96776809]
[1754866727359,0.1176,4245.0,4244.9,3.612]
[1754866728160,0.1176,4245.0,4244.8,2.35581643]
[1754866728329,0.1176,4245.0,4244.9,3.612]
[1754866729167,0.1176,4245.0,4244.9,5.96776809]
[1754866730466,0.002,4245.4,4245.3,2.35554613]
[1754866730656,0.002,4245.4,4245.3,5.96554613]
[1754866731057,0.002,4245.4,4245.3,6.90414613]
[1754866732263,0.002,4245.4,4245.3,3.29414613]
[1754866732454,0.002,4245.4,4245.3,6.90514613]
[1754866732948,0.002,4245.4,4245.3,3.29414613]
[1754866733142,0.002,4245.4,4245.3,6.90414613]
[1754866733966,1e-08,4245.4,4245.3,6.90414613]
[1754866734201,0.002,4246.1,4245.3,7.26773046]
[1754866734334,0.04,4246.9,4246.1,3.21208162]
[1754866734536,0.04,4246.9,4246.4,2.35493594]
[1754866734766,0.04,4246.9,4246.8,2.35471413]
[1754866734964,0.04,4246.9,4246.8,6.00871413]
[1754866735164,0.04,4246.9,4246.8,6.94731413]
[1754866736372,1e-08,4246.9,4246.8,6.94731413]
[1754866739584,0.04,4248.9,4248.0,3.21208162]
[1754866739752,1e-08,4249.0,4248.9,2.35355033]
[1754866739957,1e-08,4249.0,4248.9,6.40467016]
[1754866740187,1e-08,4249.0,4248.9,6.95615033]
[1754866741079,1e-08,4249.0,4248.9,6.01755033]
[1754866741381,1e-08,4249.0,4248.9,6.95615033]
[1754866741745,1e-08,4249.4,4248.9,6.95615033]
[1754866742071,1e-08,4249.4,4249.3,2.35332878]
[1754866742248,1e-08,4249.4,4249.3,6.03032878]
[1754866742552,1e-08,4249.4,4249.3,6.96892878]
[1754866742969,1e-08,4249.4,4249.3,6.03032878]
[1754866744070,1e-08,4249.4,4249.3,6.14792878]
[1754866745157,1e-08,4249.4,4249.3,7.08652878]
[1754866745568,1e-08,4249.4,4249.3,6.14792878]
[1754866746290,1e-08,4249.4,4249.3,3.679]
[1754866746291,0.94450001,4249.4,4249.3,3.679]
[1754866746522,0.94450001,4249.4,4249.3,3.681]
[1754866746523,1.06210001,4249.4,4249.3,3.681]
[1754866746788,1.46871001,4249.4,4249.3,3.68]
[1754866747088,1.06210001,4249.4,4249.3,3.68]
[1754866748781,1.06210001,4249.4,4248.8,2.35355446]
[1754866749085,1.06210001,4249.4,4248.9,6.03353537]
[1754866749247,0.9445,4249.3,4248.9,6.03353537]
[1754866749451,0.4552,4249.2,4249.0,2.35348688]
[1754866749651,0.4893,4249.3,4249.1,3.679]
[1754866750051,0.9445,4249.3,4249.1,6.03243516]
[1754866750300,0.9445,4249.3,4249.1,3.679]
[1754866750509,0.11760001,4249.4,4249.1,3.679]
[1754866750710,0.11760001,4249.4,4249.3,2.35332878]
[1754866751000,0.11760001,4249.4,4249.3,6.03232878]
[1754866751566,1e-08,4249.4,4249.3,7.08852878]
[1754866751803,1e-08,4249.4,4249.3,6.14992878]
[1754866752503,1e-08,4249.4,4249.3,7.08852878]
[1754866754719,1e-08,4249.4,4249.3,2.47092878]
[1754866754920,1e-08,4249.4,4249.3,6.14992878]
[1754866755274,0.00200001,4249.4,4249.3,6.14992878]
[1754866755769,1e-08,4249.6,4249.5,2.35321802]
[1754866756115,1e-08,4250.0,4249.9,2.35299654]
[1754866756313,1e-08,4250.0,4249.9,7.52459654]
[1754866756480,1e-08,4250.0,4249.9,3.29159654]
[1754866756804,1e-08,4250.0,4249.9,6.98059654]
[1754866757013,1e-08,4250.0,4249.2,0.3676]
[1754866757014,0.55,4249.9,4249.2,0.3676]
[1754866757316,2.35321855,4249.5,4249.0,3.75]
[1754866757469,2.35320572,4249.6,4248.9,3.75]
[1754866757848,1e-08,4250.0,4248.6,0.001]
[1754866758126,0.901,4249.6,4248.7,3.749]
[1754866758322,0.4682,4249.6,4248.6,0.001]
[1754866758523,0.901,4249.5,4248.7,3.75]
[1754866758822,3.0,4249.9,4248.7,3.75]
[1754866759031,0.4328,4249.7,4248.7,3.75]
[1754866759200,0.4682,4249.6,4249.0,2.35347546]
[1754866759391,0.4682,4249.6,4249.1,3.75]
[1754866759597,0.901,4249.5,4249.1,3.75]
[1754866759814,3.0,4249.8,4249.1,3.75]
[1754866760018,0.76824879,4249.8,4249.1,6.10342543]
[1754866760218,0.76824879,4249.8,4249.1,3.75]
[1754866760419,0.4328,4249.9,4249.1,3.75]
[1754866760611,0.4328,4249.9,4249.3,2.35327389]
[1754866760805,0.4328,4249.9,4249.4,2.35326409]
[1754866761125,1e-08,4250.0,4249.5,3.748]
[1754866761327,0.4328,4249.9,4249.5,3.748]
[1754866761728,0.901,4249.9,4249.5,3.748]
[1754866763033,1e-08,4250.0,4249.5,3.748]
[1754866763332,1e-08,4250.0,4249.9,2.35299654]
[1754866763501,1e-08,4250.0,4249.9,6.09699654]
[1754866763697,1e-08,4250.0,4249.9,6.99449654]
[1754866765935,1e-08,4250.0,4249.9,7.11209654]
[1754866766548,1e-08,4250.0,4249.9,6.66429654]
[1754866766830,1e-08,4250.0,4249.9,7.12609654]
[1754866767239,1e-08,4250.0,4249.9,6.22859654]
[1754866767436,1e-08,4250.0,4249.5,0.8975]
[1754866767437,0.90100001,4250.0,4249.5,2.35317088]
[1754866767733,0.901,4249.9,4249.7,2.35306171]
[1754866768030,0.4328,4249.9,4249.7,2.35306171]
[1754866768231,0.4328,4249.9,4249.6,6.11314879]
[1754866768614,1e-08,4250.0,4249.6,3.76]
[1754866768808,1e-08,4250.0,4249.6,6.11315297]
[1754866769009,0.43280001,4250.0,4249.6,6.11315297]
[1754866769212,0.43280001,4250.0,4249.7,2.35309023]
[1754866769536,0.43280001,4250.0,4249.8,2.35303832]
[1754866769708,0.43280001,4250.0,4249.9,3.758]
[1754866770349,0.90100001,4250.0,4249.9,3.758]
[1754866770707,1.19200832,4250.0,4249.6,2.35315645]
[1754866770912,0.90100001,4250.0,4249.5,2.35320375]
[1754866771223,1e-08,4250.0,4249.9,2.35299654]
[1754866771436,1e-08,4250.0,4249.9,6.10599654]
[1754866771746,1e-08,4250.0,4249.9,2.35299654]
[1754866771907,1e-08,4250.0,4249.5,2.35321582]
[1754866771908,0.90100001,4250.0,4249.5,2.35321582]
[1754866772109,0.901,4249.9,4249.7,2.35309166]
[1754866772423,1e-08,4250.0,4249.9,2.35299654]
[1754866772617,1e-08,4250.0,4249.9,6.12099654]
[1754866773141,1e-08,4250.0,4249.2,0.4357]
[1754866773322,1e-08,4250.0,4249.8,2.35304022]
[1754866773323,0.43280001,4250.0,4249.8,2.35304022]
[1754866773521,0.43280001,4250.0,4249.9,3.768]
[1754866775462,1e-08,4250.0,4249.9,6.12099654]
[1754866775973,3.0,4251.0,4249.9,6.12099654]
[1754866775974,0.47045555,4251.1,4249.9,3.768]
[1754866776146,0.21966965,4251.3,4251.2,2.352277]
[1754866776312,0.04,4251.9,4251.7,2.35200037]
[1754866776508,0.04,4251.9,4251.8,7.02844505]
[1754866777316,0.04,4251.9,4251.8,7.14604505]
[1754866777724,0.04,4251.9,4251.8,6.24654505]
[1754866779416,0.04,4251.9,4251.8,7.14404505]
[1754866781560,0.04,4251.9,4251.8,6.24654505]
[1754866781855,0.04,4251.9,4251.8,0.1176]
[1754866782021,0.04,4251.9,4251.2,5.65]
[1754866782022,0.4728,4251.9,4251.2,5.65]
[1754866782223,0.4682,4251.8,4251.3,0.1176]
[1754866782419,0.4728,4251.9,4251.3,0.1176]
[1754866782420,0.04,4251.9,4251.8,2.35194505]
[1754866782650,0.04,4251.9,4251.8,7.02044505]
[1754866782819,0.04,4251.9,4251.8,6.55864505]
[1754866783026,0.04,4251.9,4251.8,6.12294505]
[1754866783625,0.1176,4252.6,4251.7,0.1176]
[1754866783956,0.4328,4252.3,4251.8,6.15689187]
[1754866784157,0.4328,4252.3,4251.2,0.8975]
[1754866784158,0.4328,4252.3,4251.9,3.808]
[1754866784358,0.4328,4252.2,4251.9,3.808]
[1754866784561,0.4682,4252.2,4251.9,3.808]
[1754866784732,0.4328,4252.1,4251.9,3.808]
[1754866785459,0.901,4252.0,4250.3,0.4618]
[1754866785672,0.4328,4252.0,4250.7,2.35255369]
[1754866785870,0.4328,4252.0,4250.8,7.06099835]
[1754866786045,0.4328,4252.0,4251.5,2.35205578]
[1754866786231,0.4328,4252.0,4251.6,3.811]
[1754866787072,0.4328,4251.9,4251.6,3.811]
[1754866787278,0.4682,4251.9,4251.6,3.811]
[1754866787444,0.4328,4251.8,4251.6,3.811]
[1754866787933,0.4328,4251.8,4251.0,2.35233312]
[1754866788128,0.464,4251.9,4251.1,3.811]
[1754866788334,0.464,4251.9,4251.6,2.35205122]
[1754866788529,0.464,4251.9,4251.7,3.806]
[1754866789463,0.1,4252.4,4251.7,3.806]
[1754866789464,0.464,4252.3,4251.7,6.15799718]
[1754866789668,0.464,4252.3,4251.7,3.806]
[1754866789865,0.1,4252.4,4251.7,3.806]
[1754866790162,0.1,4252.4,4251.7,4.2683]
[1754866790364,0.1,4252.4,4252.3,2.3516685]
[1754866790568,0.1,4252.4,4252.3,6.1556685]
[1754866790863,0.1,4252.4,4252.3,6.6179685]
[1754866791063,0.04,4252.9,4252.4,2.3516132]
[1754866791237,0.04,4252.9,4252.8,2.35139202]
[1754866791437,0.04,4252.9,4252.8,6.16539202]
[1754866793731,0.04,4252.9,4252.8,7.09959202]
[1754866793937,0.04,4252.9,4252.8,7.21719202]
[1754866794636,0.002,4253.2,4252.8,7.21719202]
[1754866794637,0.002,4253.2,4252.8,4.8658]
[1754866794957,0.002,4253.2,4253.0,2.35128144]
[1754866795128,0.002,4253.2,4253.1,6.27782616]
[1754866795341,0.002,4253.2,4253.1,7.21202616]
[1754866795543,0.002,4253.2,4253.1,7.09442616]
[1754866795744,0.04,4253.9,4253.2,2.35117088]
[1754866795943,0.04,4253.9,4253.8,0.1176]
[1754866796176,0.04,4253.9,4253.8,6.27843924]
[1754866796356,0.04,4253.9,4253.8,3.9276]
[1754866796542,0.04,4253.9,4253.8,2.35083924]
[1754866796764,0.04,4253.9,4253.8,3.809]
[1754866797681,0.04,4253.9,4253.8,6.15983924]
[1754866797882,0.04,4253.9,4253.8,3.809]
[1754866798479,0.04,4253.9,4253.8,6.15983924]
[1754866798865,0.04,4253.9,4253.8,3.809]
[1754866799092,0.04,4253.9,4253.6,0.1176]
[1754866799273,0.04,4253.9,4253.8,3.804]
[1754866799609,0.04,4253.9,4253.8,6.15283924]
[1754866799750,0.04,4253.9,4253.8,6.62473924]
[1754866799953,0.04,4253.9,4253.8,7.08703924]
[1754866800178,0.04,4253.9,4253.8,7.20463924]
[1754866800682,0.04,4253.9,4253.8,3.40263924]
[1754866800866,0.04,4253.9,4253.8,7.20763924]
[1754866801071,0.04,4254.9,4253.8,3.9226]
[1754866801292,0.04,4254.9,4254.8,2.35028673]
[1754866801498,1e-08,4255.4,4254.8,3.82750286]
[1754866801664,1e-08,4255.4,4255.3,0.1176]
[1754866802052,0.92830001,4255.4,4253.4,0.4623]
[1754866802257,3.0,4255.2,4253.5,3.83]
[1754866802491,0.9283,4255.1,4253.5,3.83]
[1754866802672,0.9283,4255.1,4253.5,6.18100386]
[1754866802985,0.464,4255.0,4253.5,3.83]
[1754866803193,3.0,4254.9,4253.6,3.84]
[1754866803351,1.32113,4254.8,4253.7,3.84]
[1754866803550,3.9283,4254.7,4252.6,6.1083]
[1754866803750,3.0,4254.5,4252.6,5.686]
[1754866803970,2.35081949,4253.9,4252.7,3.84]
[1754866804188,1.16338195,4253.8,4252.7,3.84]
[1754866804498,0.044,4255.9,4252.7,4.7742]
[1754866804789,0.464,4255.0,4252.9,2.35133673]
[1754866804973,0.9283,4255.3,4253.0,0.9342]
[1754866805176,2.35017626,4255.0,4253.8,2.35078951]
[1754866805387,0.9283,4254.9,4253.9,3.84]
[1754866805553,3.27858694,4254.8,4253.9,6.19077491]
[1754866805885,0.32785869,4254.7,4253.9,3.84]
[1754866806073,5.35012151,4255.1,4254.2,2.35060721]
[1754866806256,3.0,4255.1,4253.9,3.84]
[1754866806459,3.0,4255.1,4254.1,2.35067346]
[1754866806660,3.0,4255.1,4253.9,2.35078398]
[1754866806861,0.62784143,4255.0,4254.2,6.18859301]
[1754866807076,2.97801904,4255.0,4254.2,3.838]
[1754866807277,2.35039716,4254.7,4254.3,3.836]
[1754866807479,2.350508,4254.4,4254.1,3.836]
[1754866807683,0.4643,4254.8,4254.2,3.835]
[1754866807991,0.4643,4254.7,4254.2,3.835]
[1754866808158,0.464,4254.9,4254.2,3.835]
[1754866808159,0.464,4254.6,4254.2,3.835]
[1754866808354,2.35046948,4254.5,4254.2,3.835]
[1754866808563,3.56012405,4254.6,4254.2,3.835]
[1754866808786,2.35046799,4254.5,4254.2,3.835]
[1754866809091,0.74572499,4254.6,4253.2,2.81342713]
[1754866809255,0.9283,4254.5,4252.7,0.4623]
[1754866809459,0.9283,4254.4,4252.8,3.831]
[1754866809790,0.9283,4254.3,4252.8,3.831]
[1754866810085,2.35067346,4254.1,4252.9,2.35133673]
[1754866810289,0.9283,4254.2,4253.0,2.35127237]
[1754866810496,3.0,4254.1,4253.0,2.35123134]
[1754866810684,0.62789549,4254.0,4253.3,2.35110555]
[1754866810999,0.464,4253.9,4253.2,3.832]
[1754866811297,0.464,4253.9,4253.2,6.18316985]
[1754866811485,0.464,4254.6,4253.7,2.35086247]
[1754866811686,10.4643,4255.3,4253.8,3.83]
[1754866811893,6.18145376,4256.4,4253.8,3.83]
[1754866811894,0.464,4254.9,4253.8,3.83]
[1754866812202,0.464,4255.3,4253.8,3.83]
[1754866812405,0.464,4255.7,4254.0,2.35072872]
[1754866812568,0.21877287,4256.2,4253.9,1.0518]
[1754866812569,0.1176,4255.2,4254.5,0.1176]
[1754866812776,0.1176,4255.2,4254.9,2.35022254]
[1754866812998,0.9283,4255.2,4254.4,2.35046563]
[1754866813304,0.464,4256.0,4254.5,3.83]
[1754866813604,0.1176,4254.9,4254.6,3.831]
[1754866813971,0.1176,4254.9,4254.6,2.35039657]
[1754866814172,0.1176,4254.9,4254.3,2.46814832]
[1754866814487,0.1176,4254.9,4254.4,6.1795077]
[1754866814797,0.1176,4254.9,4254.5,2.35043953]
[1754866815012,0.1176,4254.9,4254.3,0.1176]
[1754866815211,0.46430001,4255.4,4254.6,3.827]
[1754866815382,0.74571448,4255.4,4254.6,3.827]
[1754866815703,0.1176,4254.7,4254.6,3.827]
[1754866815998,0.1176,4254.7,4254.6,3.829]
[1754866816612,1.0459,4254.7,4254.6,3.829]
[1754866816804,1.0459,4254.7,4253.3,0.001]
[1754866817010,0.1176,4253.5,4253.3,0.001]
[1754866817568,0.5646,4253.5,4253.3,0.001]
[1754866818078,0.1176,4253.5,4253.3,0.001]
[1754866818628,0.1176,4253.4,4253.3,0.001]
[1754866824521,2.46866032,4253.4,4253.3,0.001]
[1754866824721,4.79611788,4253.4,4253.3,0.001]
[1754866824891,3.88411788,4253.4,4253.3,0.001]
[1754866825088,7.1471782,4253.4,4253.3,0.001]
[1754866825296,7.6971782,4253.4,4253.3,0.001]
[1754866825504,7.1471782,4253.4,4253.3,0.001]
[1754866825735,4.79611788,4253.4,4253.3,0.001]
[1754866825904,7.1471782,4253.4,4253.3,0.001]
[1754866826424,4.79611788,4253.4,4253.3,0.001]
[1754866826648,3.88411788,4253.4,4253.3,0.001]
[1754866826801,3.66446603,4253.4,4253.3,0.001]
[1754866827003,0.1176,4253.4,4253.3,0.001]
[1754866828313,1.0296,4253.4,4253.3,0.001]
[1754866828696,6.38066032,4253.4,4253.3,0.001]
[1754866828892,10.96414712,4253.4,4253.3,0.001]
[1754866829205,6.60014712,4253.4,4253.3,0.001]
[1754866829406,7.4952574,4253.4,4253.3,0.001]
[1754866830738,8.0452574,4253.4,4253.3,0.001]
[1754866831605,38.0452574,4253.4,4253.3,0.001]
[1754866831818,38.66988284,4253.4,4253.3,0.001]
[1754866832020,38.55081806,4253.4,4253.3,0.001]
[1754866832330,38.55081806,4253.4,4253.3,1e-08]
[1754866832641,2.35177912,4252.1,4252.0,0.001]
[1754866832952,9.50577187,4252.1,4252.0,0.001]
[1754866833321,10.19837912,4252.1,4252.0,0.001]
[1754866833521,10.41761786,4252.1,4252.0,0.001]
[1754866834174,6.60061786,4252.1,4252.0,0.001]
[1754866834450,10.17961099,4252.1,4252.0,0.001]
[1754866834614,11.09161099,4252.1,4252.0,0.001]
[1754866835212,11.09161099,4252.1,4251.6,0.041]
[1754866835213,2.35183443,4252.0,4251.6,0.041]
[1754866835415,2.35183443,4252.0,4251.6,1e-08]
[1754866835416,2.35200037,4251.7,4251.6,1e-08]
[1754866835655,35.90200037,4251.7,4251.6,1e-08]
[1754866835823,35.90200037,4251.7,4251.1,0.001]
[1754866835824,2.90222167,4251.3,4251.1,1e-08]
[1754866836022,9.714277,4251.2,4251.1,1e-08]
[1754866836319,40.743877,4251.2,4250.7,0.001]
[1754866836520,3.02009835,4250.8,4250.7,1e-08]
[1754866836740,3.02009835,4250.8,4249.3,0.4691]
[1754866836741,2.35271974,4250.4,4249.3,0.4691]
[1754866836946,10.93625582,4250.4,4249.3,0.4691]
[1754866837144,11.96585582,4250.4,4249.3,0.4691]
[1754866837344,11.96585582,4250.4,4250.3,1e-08]
[1754866837345,42.05085582,4250.4,4250.3,1e-08]
[1754866837559,42.51585582,4250.4,4250.3,1e-08]
[1754866838426,8.70285582,4250.4,4250.3,1e-08]
[1754866838754,42.51585582,4250.4,4250.3,1e-08]
[1754866839859,11.05185582,4250.4,4250.3,1e-08]
[1754866840231,8.58153608,4250.4,4250.3,1e-08]
[1754866840475,6.9286,4250.4,4250.3,1e-08]
[1754866840662,9.28131974,4250.4,4250.3,1e-08]
[1754866841652,0.1176,4250.4,4250.3,1e-08]
[1754866841852,0.1176,4250.4,4250.3,0.92120001]
[1754866843160,5.647,4251.6,4250.4,2.35271974]
[1754866843161,0.1176,4250.5,4250.4,2.35271974]
[1754866843468,0.1176,4250.5,4250.4,3.27391974]
[1754866843838,3.805,4251.2,4250.5,2.35264395]
[1754866844027,0.1176,4250.9,4250.6,0.9212]
[1754866844245,0.1176,4250.9,4250.8,2.35249835]
[1754866844445,0.1176,4251.4,4251.2,2.35226622]
[1754866844644,0.1176,4251.4,4250.8,0.1176]
[1754866844963,2.35265577,4250.6,4249.8,0.4701]
[1754866845177,0.1176,4250.4,4249.8,0.4701]
[1754866845502,2.47031974,4250.4,4250.0,0.4691]
[1754866846492,2.47031974,4250.4,4249.8,0.001]
[1754866847256,2.91731974,4250.4,4249.8,0.001]
[1754866847461,3.38231974,4250.4,4249.8,0.001]
[1754866847662,4.33651301,4250.4,4249.8,0.001]
[1754866850076,3.42451301,4250.4,4249.8,0.001]
[1754866852086,7.21851301,4250.4,4249.8,0.001]